fUSD/lending_fUSD_20250618
["ID","MTS","AMOUNT","RATE_DAILY","PERIOD"]
[366490130,1750287061413,-341.0,0.0003589,60]
[366490131,1750287061422,-341.0,0.0003589,60]
[366490132,1750287061432,-341.0,0.0003589,60]
[366490133,1750287061441,-341.0,0.0003589,60]
[366490134,1750287061451,-341.0,0.0003589,60]
[366490135,1750287061460,-341.0,0.0003589,60]
[366490136,1750287061470,-341.0,0.0003589,60]
[366490137,1750287061480,-341.0,0.0003589,60]
[366490138,1750287061490,-341.0,0.0003589,60]
[366490139,1750287061500,-341.0,0.0003589,60]
[366490140,1750287061510,-341.0,0.0003589,60]
[366490141,1750287061519,-341.0,0.0003589,60]
[366490142,1750287061528,-341.0,0.0003589,60]
[366490143,1750287061538,-341.0,0.0003589,60]
[366490144,1750287061547,-341.0,0.0003589,60]
[366490145,1750287061558,-341.0,0.0003589,60]
[366490146,1750287061567,-341.0,0.0003589,60]
[366490147,1750287061576,-341.0,0.0003589,60]
[366490148,1750287061586,-341.0,0.0003589,60]
[366490149,1750287061595,-341.0,0.0003589,60]
[366490150,1750287061605,-341.0,0.0003589,60]
[366490151,1750287061614,-341.0,0.0003589,60]
[366490152,1750287061624,-341.0,0.0003589,60]
[366490153,1750287061633,-341.0,0.0003589,60]
[366490154,1750287061643,-341.0,0.0003589,60]
[366490155,1750287061653,-341.0,0.0003589,60]
[366490156,1750287061662,-341.0,0.0003589,60]
[366490157,1750287061672,-341.0,0.0003589,60]
[366490158,1750287061681,-341.0,0.0003589,60]
[366490159,1750287061691,-341.0,0.0003589,60]
[366490160,1750287061701,-341.0,0.0003589,60]
[366490161,1750287061711,-341.0,0.0003589,60]
[366490162,1750287061720,-341.0,0.0003589,60]
[366490163,1750287061730,-341.0,0.0003589,60]
[366490164,1750287061740,-341.0,0.0003589,60]
[366490165,1750287061750,-341.0,0.0003589,60]
[366490166,1750287061760,-341.0,0.0003589,60]
[366490167,1750287061770,-341.0,0.0003589,60]
[366490168,1750287061780,-341.0,0.0003589,60]
[366490169,1750287061790,-805.0,0.0003589,60]
[366490170,1750287061800,-805.0,0.0003589,60]
[366490171,1750287061809,-805.0,0.0003589,60]
[366490172,1750287061819,-6785.75673485,0.000359,7]
[366490173,1750287061829,-2500.0,0.000359,60]
[366490174,1750287061839,-1000.0,0.000359,120]
[366490175,1750287061848,-13732.77490175,0.0003591,2]
[366490176,1750287061857,-150.0,0.00035945,120]
[366490177,1750287061867,-6117.12008047,0.00035954,8]
[366490178,1750287061876,-150.0,0.0003596,120]
[366490179,1750287061885,-150.0,0.00035983,120]
[366490180,1750287061895,-10030.37390284,0.00036,20]
[366490181,1750287061904,-228208.78922538,0.00036,2]
[366490182,1750287061913,-275.0,0.00036,10]
[366490183,1750287061923,-250.0,0.00036,10]
[366490184,1750287061933,-352.15961262,0.00036,120]
[366490185,1750287061943,-4382.24747065,0.00036,120]
[366490186,1750287061953,-500.0,0.00036,120]
[366490187,1750287061963,-164.0,0.00036,30]
[366490188,1750287061972,-400.0,0.00036,120]
[366490189,1750287061982,-202.0,0.00036,30]
[366490190,1750287061992,-160.0,0.00036,30]
[366490191,1750287062001,-161.0,0.00036,30]
[366490192,1750287062011,-214.0,0.00036,2]
[366490193,1750287062021,-150.0,0.00036001,120]
[366490194,1750287062031,-1783.62314122,0.00036025,30]
[366490195,1750287062043,-1099.66871677,0.00036025,30]
[366490196,1750287062053,-2971.91794911,0.00036025,30]
[366490197,1750287062063,-275.83996,0.00036088,7]
[366490198,1750287062072,-2482.55972,0.00036088,30]
[366490199,1750287062082,-258.41,0.00036104,5]
[366490200,1750287062092,-1466.05,0.00036119,5]
[366490201,1750287062102,-2843.034255,0.00036124,7]
[366490202,1750287062114,-1440.504975,0.00036124,7]
[366490203,1750287062124,-5000.0,0.00036129,5]
[366490204,1750287062134,-152.0,0.00036143,18]
[366490205,1750287062144,-5000.0,0.00036159,5]
[366490206,1750287062154,-650.51,0.00036164,5]
[366490207,1750287062164,-150.0,0.0003619,120]
[366490208,1750287062174,-2000.0,0.000362,2]
[366490209,1750287062183,-217.15233878,0.00036227,2]
[366490210,1750287062193,-298.26089446,0.00036227,2]
[366490211,1750287062203,-1076.08,0.00036236,2]
[366490212,1750287062212,-150.0,0.00036253,120]
[366490213,1750287062222,-275.83996,0.00036288,7]
[366490214,1750287062231,-2482.55972,0.00036288,30]
[366490215,1750287062241,-5000.0,0.00036328,5]
[366490216,1750287062250,-5000.0,0.00036336,5]
[366490217,1750287062259,-5000.0,0.00036338,20]
[366490218,1750287062269,-150.0,0.00036352,120]
[366490219,1750287062279,-500.0,0.00036356,60]
[366490220,1750287062288,-1900.0,0.00036356,60]
[366490221,1750287062298,-1000.0,0.00036356,60]
[366490222,1750287062308,-1992.51,0.00036374,5]
[366490223,1750287062317,-150.0,0.00036382,120]
[366490224,1750287062327,-25000.0,0.00036384,5]
[366490225,1750287062337,-1783.62314122,0.00036392,30]
[366490226,1750287062347,-1099.66871677,0.00036392,30]
[366490227,1750287062357,-2971.91794911,0.00036392,30]
[366490228,1750287062366,-4667.48,0.0003642,5]
[366490229,1750287062376,-4190.26,0.00036422,5]
[366490230,1750287062385,-150.0,0.00036422,120]
[366490231,1750287062395,-150.0,0.00036442,120]
[366490232,1750287062404,-116325.03336815,0.00036455,15]
[366490233,1750287062414,-2883.98,0.00036479,5]
[366490234,1750287062423,-275.83996,0.00036488,7]
[366490235,1750287062433,-2482.55972,0.00036488,30]
[366490236,1750287062442,-619.67521895,0.00036493,120]
[366490237,1750287062452,-1638.06,0.000365,10]
[366490238,1750287062462,-25000.0,0.0003651,5]
[366490239,1750287062472,-150.0,0.00036522,120]
[366490240,1750287062481,-150.0,0.0003656,120]
[366490241,1750287062491,-500.0,0.00036562,45]
[366490242,1750287062500,-4548.34,0.00036589,5]
[366490243,1750287062509,-600.0,0.000366,13]
[366490244,1750287062519,-2330.96,0.00036602,5]
[366490245,1750287062529,-5000.0,0.00036624,5]
[366490246,1750287062538,-25000.0,0.0003664,5]
[366490247,1750287062547,-150.0,0.00036657,120]
[366490248,1750287062557,-401.82766092,0.0003666,120]
[366490249,1750287062566,-500.0,0.00036675,72]
[366490250,1750287062576,-150.0,0.0003668,120]
[366490251,1750287062585,-5000.0,0.00036683,5]
[366490252,1750287062595,-275.83996,0.00036688,7]
[366490253,1750287062605,-2482.55972,0.00036688,30]
[366490254,1750287062614,-150.0,0.00036694,120]
[366490255,1750287062624,-600.0,0.000367,13]
[366490256,1750287062633,-150.0,0.0003672,120]
[366490257,1750287062643,-5000.0,0.00036727,5]
[366490258,1750287062652,-3680.18,0.00036744,5]
[366490259,1750287062662,-6759.5,0.0003675,5]
[366490260,1750287062671,-150.0,0.0003675,120]
[366490261,1750287062680,-150.0,0.00036754,120]
[366490262,1750287062690,-10717.52803054,0.0003676,2]
[366490263,1750287062699,-201.86242174,0.0003676,2]
[366490264,1750287062708,-554.03225337,0.0003676,7]
[366490265,1750287062717,-1783.62,0.0003676,30]
[366490266,1750287062727,-1099.66,0.0003676,30]
[366490267,1750287062736,-2971.91,0.0003676,30]
[366490268,1750287062745,-4743.29672319,0.0003676,2]
[366490269,1750287062755,-15357.08808105,0.0003676,2]
[366490270,1750287062764,-500.0,0.00036767,33]
[366490271,1750287062774,-1212.0,0.000368,13]
[366490272,1750287062783,-1572.91,0.00036818,5]
[366490273,1750287062793,-172.69153217,0.00036834,7]
[366490274,1750287062803,-1933.62,0.00036844,5]
[366490275,1750287062812,-2717.67298059,0.00036859,7]
[366490276,1750287062822,-732.49530941,0.00036859,7]
[366490277,1750287062832,-246324.32401285,0.0003686,6]
[366490278,1750287063403,-269.810001,0.0003686,6]
[366490279,1750287063415,-282.0,0.0003686,6]
[366490280,1750287063427,-19149.94697625,0.0003686,6]
[366490281,1750287063666,-500.0,0.00019998,2]
[366490282,1750287063676,-273.86477497,0.00019998,2]
[366490283,1750287063687,-162.99751354,0.00019998,2]
[366490284,1750287063698,-500.0,0.00019998,2]
[366490285,1750287063709,-199.72815026,0.00019998,2]
[366490286,1750287063719,-400.92956121,0.0003686,6]
[366490287,1750287065596,-500.0,0.00019998,2]
[366490288,1750287065606,-149.77887564,0.00019998,2]
[366490289,1750287065774,-350.22112436,0.00019998,2]
[366490290,1750287065784,-437.55434818,0.00019998,2]
[366490291,1750287065794,-500.0,0.00019998,2]
[366490292,1750287065804,-500.0,0.00019998,2]
[366490293,1750287065814,-500.0,0.00019998,2]
[366490294,1750287065823,-500.0,0.00019998,2]
[366490295,1750287065834,-500.0,0.00019998,2]
[366490296,1750287065844,-569.92117613,0.00019998,2]
[366490297,1750287065854,-500.0,0.00019998,2]
[366490298,1750287065864,-375.36549867,0.00019998,2]
[366490299,1750287065874,-175.09389061,0.00019998,2]
[366490300,1750287065886,-324.90610939,0.00019998,2]
[366490301,1750287065896,-177.59301061,0.00019998,2]
[366490302,1750287065908,-322.40698939,0.00019998,2]
[366490303,1750287065918,-500.0,0.00019998,2]
[366490304,1750287065928,-500.0,0.00019998,2]
[366490305,1750287065938,-500.0,0.00019998,2]
[366490306,1750287065948,-304.07163323,0.00019998,2]
[366490307,1750287065958,-500.0,0.00019998,2]
[366490308,1750287065968,-500.0,0.00019998,2]
[366490309,1750287065978,-500.0,0.00019998,2]
[366490310,1750287065988,-500.0,0.00019998,2]
[366490311,1750287065998,-500.0,0.00019998,2]
[366490312,1750287066009,-500.0,0.00019998,2]
[366490313,1750287066020,-151.0,0.0002465,7]
[366490314,1750287066030,-151.0,0.000248,7]
[366490315,1750287066047,-225707.39111427,0.0003686,6]
[366490316,1750287066094,-11017.7906506,0.0003686,6]
[366490317,1750287067773,-151.0,0.0002465,7]
[366490318,1750287067783,-394.3423038,0.00024892,2]
[366490319,1750287067792,-151.0,0.000249,7]
[366490320,1750287067802,-190.8369347,0.00025183,2]
[366490321,1750287067811,-151.0,0.000253,7]
[366490322,1750287067821,-151.0,0.000253,7]
[366490323,1750287067830,-276.26198042,0.00034887,15]
[366490324,1750287067841,-1815.49175108,0.0003686,6]
[366490325,1750287067854,-185805.17547898,0.0003686,6]
[366490326,1750287067866,-514.73715875,0.0003686,6]
[366490327,1750287067989,-183395.62442271,0.0003686,6]
[366490328,1750287068002,-1610.64595161,0.0003686,6]
[366490329,1750287068015,-500.0,0.0003686,6]
[366490330,1750287068060,-602.0,0.0003686,6]
[366490331,1750287068076,-151.0,0.000248,7]
[366490332,1750287068086,-957.77914718,0.0003686,6]
[366490333,1750287068153,-687.33772041,0.0003686,6]
[366490334,1750287068166,-479.83,0.0003686,6]
[366490335,1750287068178,-610.68180385,0.0003686,6]
[366490340,1750287347725,158.39,0.00013699,2]
[366490349,1750287860473,431.89,0.00016,7]
[366490351,1750287891895,244.0,0.00024657,120]
[366490352,1750287902398,211.0,0.000211,90]
[366490354,1750288013105,-151.0,0.0001731,2]
[366490355,1750288013127,-300.0,0.00018716,2]
[366490356,1750288013148,-250.0,0.00019286,2]
[366490357,1750288013170,-300.0,0.00019286,2]
[366490358,1750288013192,-247.67859932,0.00019898,2]
[366490460,1750288232319,-356.39,0.00016438,5]
[366490461,1750288232331,-23.42374118,0.00016438,5]
[366490462,1750288232341,-272.83621547,0.00019897,2]
[366490463,1750288232460,-680.16378453,0.00019897,2]
[366490464,1750288232470,-300.0,0.00019898,2]
[366490465,1750288232480,-261.0,0.00019898,2]
[366490466,1750288232490,-300.0,0.00019898,2]
[366490467,1750288232499,-383.69,0.00019899,2]
[366490468,1750288232508,-13227.74621547,0.00019899,2]
[366490469,1750288232518,-12163.77459267,0.00019899,2]
[366490470,1750288232530,-4766.98497705,0.00019899,2]
[366490471,1750288232562,-1931.29449889,0.00019899,2]
[366490472,1750288232573,-562.76417773,0.00019899,2]
[366490473,1750288232583,-429.81070134,0.00019899,2]
[366490474,1750288232595,-2881.4109848,0.00019899,2]
[366490475,1750288232607,-95.15985205,0.00019899,2]
[366490476,1750288232616,-293.5098981,0.00019899,2]
[366490477,1750288232627,-13431.6482019,0.00019899,2]
[366490478,1750288232637,-221.88833573,0.00019899,2]
[366490479,1750288232646,-158.39,0.00020187,2]
[366490480,1750288232656,-9747.98490859,0.0002022,2]
[366490481,1750288232666,-1987.3793681,0.000209,4]
[366490482,1750288232676,-300.70918588,0.00021098,2]
[366490483,1750288232687,-715.29081412,0.00021098,2]
[366490484,1750288232697,-423.19312795,0.00021276,2]
[366490487,1750288232721,-1787.80687205,0.00021276,2]
[366490488,1750288232731,-286.896,0.00021276,2]
[366490489,1750288232741,-150.0,0.00021276,2]
[366490490,1750288232750,-150.52,0.00021276,2]
[366490491,1750288232760,-1470.0,0.00021486,5]
[366490492,1750288232769,-1987.37936795,0.00021486,5]
[366490493,1750288232778,-859.72,0.000216,2]
[366490494,1750288232787,-19959.48531233,0.00022,15]
[366490495,1750288232799,-5663.40915806,0.00022,15]
[366490496,1750288232809,-1987.37936795,0.00022072,6]
[366490497,1750288232818,-832.0,0.00022446,2]
[366490498,1750288232827,-559.09,0.000225,2]
[366490499,1750288232837,-1268.0,0.00022557,2]
[366490500,1750288232846,-1747.07,0.00022562,5]
[366490501,1750288232855,-859.72,0.000226,2]
[366490502,1750288232864,-1987.37936795,0.00022659,7]
[366490503,1750288232873,-155.0,0.00022942,2]
[366490504,1750288232882,-1000.0,0.00023,8]
[366490505,1750288232891,-1000.0,0.00023,8]
[366490506,1750288232900,-59.59854035,0.00023,8]
[366490507,1750288232968,-438.21896973,0.00023,8]
[366490508,1750288232978,-502.18248992,0.00023,8]
[366490509,1750288232986,-1000.0,0.00023,8]
[366490510,1750288232993,-388.26567837,0.00023,8]
[366490699,1750288238424,-611.73432163,0.00023,8]
[366490700,1750288238434,-1000.0,0.00023,8]
[366490701,1750288238443,-1000.0,0.00023,8]
[366490702,1750288238453,-1000.0,0.00023,8]
[366490703,1750288238462,-1000.0,0.00023,8]
[366490704,1750288238471,-1000.0,0.00023,8]
[366490705,1750288238481,-200.0,0.00023,2]
[366490706,1750288238490,-1868.1807333,0.00023182,2]
[366490707,1750288238500,-1987.37936795,0.00023245,8]
[366490708,1750288238510,-859.72,0.000233,2]
[366490709,1750288238519,-1270.28331126,0.00023831,10]
[366490710,1750288238530,-717.09605669,0.00023831,10]
[366490711,1750288238540,-150.0,0.00023922,2]
[366490712,1750288238550,-209.5,0.00024,2]
[366490713,1750288238559,-468.11441017,0.00024049,2]
[366490714,1750288238569,-306.49,0.00024059,2]
[366490715,1750288238578,-59.79876672,0.00024072,2]
[366490716,1750288238590,-940.20123328,0.00024072,2]
[366490717,1750288238599,-65.33510658,0.00024106,2]
[366490718,1750288238611,-98.25489342,0.00024106,2]
[366490720,1750288238621,-1584.0,0.00024162,2]
[366490722,1750288238630,-344.94030658,0.00024411,2]
[366490724,1750288238642,-790.11199992,0.00024411,2]
[366490726,1750288238654,-448.9476935,0.00024411,2]
[366490729,1750288238663,-565.71510649,0.00024417,11]
[366490903,1750288240471,-1421.66426146,0.00024417,11]
[366490905,1750288240481,-150.0,0.00024561,2]
[366490907,1750288240491,-563.81270466,0.00024601,2]
[366490909,1750288240501,-182.5907114,0.00024658,2]
[366490911,1750288240510,-1000.0,0.00024658,2]
[366490913,1750288240520,-1584.0,0.0002466,2]
[366490915,1750288240529,-1210.85,0.00024685,30]
[366490917,1750288240538,-201.296527,0.000248,2]
[366490919,1750288240547,-2000.0,0.00024854,60]
[366490921,1750288240557,-1584.0,0.00024909,2]
[366490923,1750288240566,-306.49,0.00024961,2]
[366490925,1750288240577,-1987.37936795,0.00025003,12]
[366490927,1750288240586,-1584.0,0.00025158,2]
[366490929,1750288240596,-174.60685391,0.00025183,2]
[366490930,1750288240605,-150.0,0.000252,2]
[366490932,1750288240615,-859.72,0.000252,2]
[366490933,1750288240624,-280.0,0.000253,10]
[366490935,1750288240633,-1584.0,0.00025407,2]
[366490937,1750288240643,-1987.37936795,0.0002559,13]
[366490938,1750288240652,-1584.0,0.00025656,2]
[366490940,1750288240662,-150.0,0.00025839,2]
[366490942,1750288240671,-306.49,0.00025863,2]
[366490943,1750288240681,-156.55935746,0.00026037,2]
[366490945,1750288240691,-685.34468709,0.00026137,120]
[366490947,1750288240700,-1987.37936795,0.00026176,14]
[366490949,1750288240710,-2000.0,0.00026454,60]
[366490950,1750288240719,-585.656356,0.00026454,120]
[366490952,1750288240729,-150.0,0.00026478,2]
[366490954,1750288240739,-598.26,0.00026643,2]
[366490956,1750288240748,-611.43,0.00026654,2]
[366490957,1750288240759,-602.98,0.00026654,2]
[366490959,1750288240769,-610.16,0.00026654,2]
[366490961,1750288240778,-605.89,0.00026654,2]
[366490962,1750288240788,-606.19,0.00026654,2]
[366490964,1750288240798,-158.39,0.00026676,2]
[366490966,1750288240807,-597.46,0.00026679,2]
[366490968,1750288240816,-588.64,0.00026679,2]
[366490969,1750288240825,-593.82,0.00026679,2]
[366490971,1750288240834,-588.61,0.00026679,2]
[366490973,1750288240843,-603.5,0.00026701,2]
[366490974,1750288240852,-592.58,0.00026701,2]
[366490976,1750288240862,-608.58,0.00026701,2]
[366490978,1750288240871,-591.11,0.00026743,2]
[366490980,1750288240880,-594.49,0.00026743,2]
[366491015,1750288241284,-592.19,0.00026743,2]
[366491019,1750288241329,-611.99,0.00026743,2]
[366491021,1750288241339,-610.3,0.00026743,2]
[366491022,1750288241349,-597.94,0.00026751,2]
[366491024,1750288241359,-588.53,0.00026751,2]
[366491026,1750288241368,-596.77,0.00026751,2]
[366491028,1750288241377,-596.64,0.00026751,2]
[366491029,1750288241386,-602.99,0.00026751,2]
[366491031,1750288241395,-1987.37936795,0.00026762,15]
[366491033,1750288241405,-306.49,0.00026765,2]
[366491035,1750288241418,-1007.87,0.00026834,2]
[366491037,1750288241426,-993.09,0.00026851,2]
[366491039,1750288241436,-981.79,0.00026851,2]
[366491040,1750288241445,-1009.62,0.00026851,2]
[366491042,1750288241456,-988.54,0.00026851,2]
[366491044,1750288241465,-997.1,0.00026851,2]
[366491046,1750288241474,-1018.35,0.00026851,2]
[366491048,1750288241483,-981.43,0.00026851,2]
[366491049,1750288241493,-1006.53,0.00026881,2]
[366491051,1750288241504,-1015.2,0.00026881,2]
[366491053,1750288241514,-999.94,0.00026881,2]
[366491055,1750288241523,-1004.47,0.00026881,2]
[366491057,1750288241532,-991.25,0.00026881,2]
[366491058,1750288241542,-1013.56,0.00026881,2]
[366491060,1750288241552,-1000.38,0.00026881,2]
[366491062,1750288241562,-1003.44,0.00026881,2]
[366491064,1750288241572,-1014.24,0.00026881,2]
[366491066,1750288241582,-994.37,0.00026881,2]
[366491068,1750288241592,-986.17,0.00026887,2]
[366491069,1750288241601,-995.47,0.00026887,2]
[366491071,1750288241610,-1007.02,0.00026887,2]
[366491073,1750288241619,-998.0,0.00026887,2]
[366491075,1750288241629,-1009.82,0.00026887,2]
[366491077,1750288241639,-1019.4,0.00026887,2]
[366491079,1750288241649,-1002.78,0.00026887,2]
[366491081,1750288241658,-981.14,0.00026887,2]
[366491082,1750288241668,-1018.87,0.00026887,2]
[366491084,1750288241677,-400.0,0.00027,2]
[366491086,1750288241687,-1000.0,0.00027081,2]
[366491088,1750288241696,-150.0,0.00027117,2]
[366491090,1750288241705,-1935.4172,0.00027197,2]
[366491091,1750288241715,-156.55935744,0.00027228,2]
[366491093,1750288241724,-208.46498221,0.00027297,2]
[366491095,1750288241734,-188.67846968,0.00027297,2]
[366491097,1750288241743,-3014.89425189,0.00027297,2]
[366491099,1750288241753,-1987.37936795,0.00027348,16]
[366491101,1750288241762,-40592.0802511,0.00027387,3]
[366491106,1750288241808,-12361.87499999,0.00027387,3]
[366491108,1750288241820,-866.38249894,0.00027387,3]
[366491110,1750288241831,-1352.25,0.00027387,3]
[366491115,1750288241879,-650.0,0.00027387,3]
[366491117,1750288241890,-534.62502775,0.00027387,3]
[366491119,1750288241901,-1218.87362446,0.00027387,3]
[366491122,1750288241929,-9291.51291903,0.00027387,3]
[366491124,1750288241939,-1729.85740307,0.00027387,3]
[366491126,1750288241950,-1111.91267993,0.00027387,3]
[366491128,1750288241961,-4765.85683243,0.00027387,3]
[366491130,1750288241970,-122.23048764,0.00027396,2]
[366491139,1750288242056,-377.76951236,0.00027396,2]
[366491140,1750288242066,-500.0,0.00027396,2]
[366491141,1750288242076,-500.0,0.00027396,2]
[366491142,1750288242085,-500.0,0.00027396,2]
[366491143,1750288242095,-500.0,0.00027396,2]
[366491144,1750288242105,-500.0,0.00027396,2]
[366491145,1750288242114,-221.87143625,0.00027396,2]
[366491146,1750288242124,-500.0,0.00027396,2]
[366491147,1750288242133,-500.0,0.00027396,2]
[366491148,1750288242142,-500.0,0.00027396,2]
[366491149,1750288242152,-638.74180066,0.00027396,2]
[366491150,1750288242163,-409.03635154,0.00027396,2]
[366491151,1750288242172,-166.36499488,0.00027396,2]
[366491152,1750288242181,-464.19290034,0.00027396,2]
[366491153,1750288242191,-415.23374681,0.00027396,2]
[366491154,1750288242200,-500.0,0.00027396,2]
[366491155,1750288242209,-200000.0,0.00027397,2]
[366491157,1750288242219,-300.0,0.00027397,2]
[366491158,1750288242228,-9693.08,0.00027397,2]
[366491160,1750288242238,-150.0,0.00027616,2]
[366491162,1750288242247,-150.0,0.00027616,2]
[366491165,1750288242257,-150.0,0.00027616,2]
[366491167,1750288242267,-150.0,0.00027616,2]
[366491169,1750288242277,-150.0,0.00027616,2]
[366491171,1750288242287,-150.0,0.00027616,2]
[366491173,1750288242296,-150.0,0.00027616,2]
[366491175,1750288242306,-150.0,0.00027616,2]
[366491177,1750288242316,-150.0,0.00027616,2]
[366491179,1750288242325,-150.0,0.00027616,2]
[366491181,1750288242335,-150.0,0.00027616,2]
[366491183,1750288242344,-150.0,0.00027643,2]
[366491185,1750288242353,-306.49,0.00027667,2]
[366491187,1750288242363,-150.0,0.00027671,2]
[366491189,1750288242373,-200.0,0.00027698,2]
[366491191,1750288242382,-150.0,0.00027756,2]
[366491193,1750288242391,-1007.57,0.00027765,2]
[366491195,1750288242400,-988.41,0.00027765,2]
[366491197,1750288242411,-589.51,0.00027765,2]
[366491199,1750288242422,-501.09964394,0.0002783,15]
[366491201,1750288242431,-1987.37936795,0.00027934,18]
[366491203,1750288242440,-609.91,0.00027999,2]
[366491205,1750288242449,-166.1,0.00028036,2]
[366491207,1750288242460,-604.42,0.00028065,2]
[366491209,1750288242469,-602.99,0.00028065,2]
[366491211,1750288242478,-988.8,0.00028335,2]
[366491213,1750288242489,-1013.96,0.00028335,2]
[366491215,1750288242498,-3014.8942518,0.00028348,2]
[366491217,1750288242507,-150.0,0.00028395,2]
[366491219,1750288242516,-156.55935744,0.0002842,2]
[366491221,1750288242526,-1987.37936795,0.00028521,19]
[366491223,1750288242535,-9693.08,0.00028767,2]
[366491225,1750288242544,-150.0,0.00029034,2]
[366491227,1750288242553,-1987.37936795,0.00029107,20]
[366491229,1750288242563,-3014.8942518,0.000294,2]
[366491231,1750288242572,-156.55935744,0.00029611,2]
[366491233,1750288242582,-150.0,0.00029673,2]
[366491235,1750288242591,-1987.37936795,0.00029693,21]
[366491237,1750288242601,-1677.29,0.000297,7]
[366491239,1750288242610,-174.84903625,0.000298,2]
[366491241,1750288242619,-656.636904,0.0003,2]
[366491243,1750288242629,-215.0,0.0003,2]
[366491245,1750288242639,-1000.0,0.0003009,2]
[366491247,1750288242649,-300.0,0.00030137,80]
[366491249,1750288242659,-9693.08,0.00030137,2]
[366491251,1750288242668,-1987.37936795,0.00030279,22]
[366491254,1750288242677,-150.0,0.00030312,2]
[366491256,1750288242687,-601.97,0.00030376,2]
[366491258,1750288242696,-222.0,0.00030451,5]
[366491260,1750288242705,-188.67846965,0.00030451,15]
[366491262,1750288242714,-3014.8942518,0.00030451,2]
[366491264,1750288242723,-859.72,0.000305,2]
[366491266,1750288242731,-156.55935744,0.00030803,2]
[366491268,1750288242740,-1987.37936795,0.00030866,23]
[366491270,1750288242748,-150.0,0.00030951,2]
[366491272,1750288242757,-1987.37936795,0.00031452,25]
[366491274,1750288242767,-3014.8942518,0.00031503,2]
[366491276,1750288242776,-9693.08,0.00031507,2]
[366491278,1750288242786,-191.70534248,0.00031509,2]
[366491280,1750288242795,-397.21932817,0.00031509,2]
[366491282,1750288242805,-500.0,0.00031509,2]
[366491284,1750288242815,-183.49854742,0.00031509,2]
[366491286,1750288242824,-556.28804372,0.00031509,2]
[366491288,1750288242833,-500.0,0.00031509,2]
[366491290,1750288242843,-500.0,0.00031509,2]
[366491292,1750288242852,-150.0,0.0003159,2]
[366491294,1750288242862,-500.0,0.00031972,7]
[366491296,1750288242871,-156.55935744,0.00031994,2]
[366491298,1750288242880,-2000.0,0.00032,2]
[366491300,1750288242890,-2000.0,0.00032,2]
[366491302,1750288242899,-1000.0,0.00032,2]
[366491304,1750288242909,-1987.37936795,0.00032038,26]
[366491306,1750288242918,-150.0,0.00032229,2]
[366491308,1750288242928,-3014.8942518,0.00032554,2]
[366491310,1750288242937,-1987.37936795,0.00032624,27]
[366491312,1750288242946,-150.0,0.00032868,2]
[366491314,1750288242957,-9693.08,0.00032877,2]
[366491316,1750288242966,-150.0,0.00033,14]
[366491318,1750288242976,-163.0,0.00033,14]
[366491320,1750288242985,-215.0,0.00033,2]
[366491322,1750288242995,-900.0,0.00033068,60]
[366491324,1750288243005,-1000.0,0.00033099,2]
[366491327,1750288243015,-158.39,0.00033165,2]
[366491329,1750288243024,-156.55935744,0.00033186,2]
[366491331,1750288243034,-37237.6131184,0.000332,3]
[366491333,1750288243044,-1987.37936795,0.0003321,28]
[366491335,1750288243053,-150.0,0.00033507,2]
[366491336,1750288243062,-188.67846965,0.00033606,15]
[366491338,1750288243072,-2732.29213816,0.00033606,2]
[366491346,1750288243102,-282.60211364,0.00033606,2]